[Event "13th All African Mixed Team Rapid-ch 202"]
[Site "Accra"]
[Date "2024.03.09"]
[Round "6.9"]
[White "Akpa Prince"]
[Black "Mwali, Chitumbo"]
[Result "0-1"]
[ECO "E01"]
[WhiteElo "1845"]
[BlackElo "2340"]
[Annotator "TA"]
[PlyCount "88"]
[EventDate "2024.03.07"]
[EventType "rapid"]
[EventCountry "GHA"]
[SourceTitle "playchess.com"]
[Source "ChessBase"]
[SourceQuality "1"]
[TimeControl "900+10"]

{[%evp 18,88,53,45,56,56,57,56,75,31,31,0,14,7,10,17,10,13,29,29,519,40,32,-1197,17,16,19,0,9,-29,0,-11,-11,0,27,25,25,26,22,22,37,32,29,0,0,0,0,-136,0,-14,0,-61,-34,-61,-33,-133,0,0,0,-52,0,-236,-238,-239,-227,-232,-239,-265,-270,-261,-210,-414,-429]} 1. d4 {[%emt 0:00:03]} Nf6 {[%emt 0:00:00]} 2. c4 {[%emt 0:00:07]} c5 {[%emt 0:00:02]} 3. Nf3 {[%emt 0:00:10]} e6 {[%emt 0:00:07]} 4. g3 {[%emt 0:00:06]} cxd4 {[%emt 0:00:08]} 5. Nxd4 {[%emt 0:00:03]} Nc6 {[%emt 0:00:01]} 6. Bg2 {[%emt 0:00:05]} d5 {[%emt 0:00:13]} 7. O-O {[%emt 0:00:06]} Bc5 {[%emt 0:00:07]} 8. Nb3 {[%emt 0:00:04]} Be7 {[%emt 0:00:03]} 9. cxd5 {[%emt 0:00:12]} exd5 {[%emt 0:00:02]} 10. Nc3 {[%emt 0:00:08]} Be6 {[%emt 0:00:19]} 11. Bg5 {[%emt 0:00:09]} O-O {[%emt 0:00:17]} 12. Rc1 {[%emt 0:01:16]} Rc8 {[%emt 0:01:03] White is slightly better.} 13. Nb5 {[%emt 0:02:12]} h6 {[%emt 0:01:59]} 14. Bf4 {[%emt 0:00:09]} Qb6 {[%emt 0:00:26]} 15. a4 {[%emt 0:01:33]} a6 {[%emt 0:00:09]} 16. Be3 {[%emt 0:00:57]} Qd8 {[%emt 0:00:08]} 17. N5d4 {[%emt 0:00:10]} Nxd4 {[%emt 0:01:12]} 18. Nxd4 {[%emt 0:00:03]} Rc5 $2 {[%emt 0:11:54][%mdl 8192]} (18... Rxc1 $11 19. Bxc1 (19. Qxc1 Bd7 $11) 19... Bd7) 19. Rc2 $2 (19. Rxc5 $18 Bd7 20. Rc3) 19... Rxc2 $14 {[%emt 0:00:00] [#]} 20. Qc1 {[%mdl 8192] [#]} Bd7 $2 21. Qxc2 $11 {[%emt 0:01:26]} Qa5 {[%emt 0:00:00][%cal Of8c8]} 22. b3 {[%emt 0:00:02]} Rc8 {[%emt 0:00:00]} 23. Qd2 {[%emt 0:00:04]} Bb4 {[%emt 0:00:00]} 24. Qd3 {[%emt 0:01:16]} Rc3 {[%emt 0:00:00]} 25. Qb1 {[%emt 0:00:02]} Ng4 {[%emt 0:00:00]} 26. Bd2 {[%emt 0:00:27]} Rc7 {[%emt 0:00:00]} 27. Bxb4 {[%emt 0:00:10]} Qxb4 {[%emt 0:00:00]} 28. e3 {[%emt 0:00:05]} Qc5 {[%emt 0:00:00]} 29. Rd1 {[%emt 0:00:42]} Nf6 {[%emt 0:00:00]} 30. b4 {[%emt 0:01:09]} Qc3 {[%emt 0:00:00]} 31. b5 {[%emt 0:00:07]} a5 {[%emt 0:00:00]} 32. Nf5 {[%emt 0:02:22]} (32. h3 $11 {keeps the balance.}) 32... Be6 {[%emt 0:00:00]} (32... Qa3 $1 $17 33. Bf1 Rc3 (33... Qxa4 34. Ne7+ Kf8 35. Nxd5 $11)) 33. Nd4 {[%emt 0:00:29]} Bg4 {[%emt 0:00:00]} 34. Bf3 {[%emt 0:00:34]} (34. Re1 $11) 34... Bxf3 $1 $15 {[%emt 0:00:00]} 35. Nxf3 {[%emt 0:00:03]} Rc4 {[%emt 0:00:00]} 36. Rd4 {[%emt 0:00:44] [#]} ({White should try} 36. Rd3 $15 Qc2 37. Qxc2 Rxc2 38. Rd4) 36... b6 {[%emt 0:00:00]} ({Better is} 36... Ne4 $1 $17 37. Kg2 Rxd4 38. Nxd4 Qd2) 37. Rxc4 {[%emt 0:00:14]} Qxc4 $11 {[%emt 0:00:00][%mdl 4096] Endgame. KQN-KQN} 38. Qa1 {[%emt 0:00:03]} (38. Qf5 $11) 38... Qe4 {[%emt 0:00:32]} ({Black should play} 38... Ne4 $15 39. Nd4 Qd3) 39. Kg2 $2 {[%emt 0:01:19] [#]} (39. Nd2 $11 {and White stays safe.} Qd3 40. Qc1) 39... Nd7 $1 $19 {[%emt 0:00:11]} 40. Qd4 {[%emt 0:00:07]} Nc5 {[%emt 0:00:06]} 41. Qxe4 {[%emt 0:00:34]} dxe4 {[%emt 0:00:02]} 42. Ne5 {[%emt 0:00:59]} Nxa4 {[%emt 0:00:09]} 43. Nc4 {[%emt 0:00:06]} Kf8 {[%emt 0:00:08] White must now prevent ...Ke7.} 44. Kf1 $2 {[%emt 0:00:08]} (44. f3) 44... Ke7 {[%emt 0:00:01] Quite a comeback for Black.   Weighted Error Value: White=0.67/Black=0.47.  Loses game:     	White=2     	Black=1      Missed win:     	White=1     	Black=1      Mistake:       	White=5     	Black=3      Inaccurate:     	White=5     	Black=3      OK:         	White=12    	Black=14     Best:        	White=1     	---        Strong:       	---       	Black=2} 0-1

[Event "13th All African Mixed Team Rapid-ch 202"]
[Site "Accra"]
[Date "2024.03.09"]
[Round "6.10"]
[White "Mbatha, Constance"]
[Black "Ayiku, Angela Naa Amerley"]
[Result "1-0"]
[ECO "B27"]
[WhiteElo "1799"]
[BlackElo "1629"]
[Annotator "NA RC"]
[PlyCount "100"]
[EventDate "2024.03.07"]
[EventType "rapid"]
[EventCountry "GHA"]
[SourceTitle "playchess.com"]
[Source "ChessBase"]
[SourceQuality "1"]
[TimeControl "900+10"]

1. e4 {[%emt 0:00:01]} c5 {[%emt 0:00:03]} 2. Nf3 {[%emt 0:00:02]} g6 {[%emt 0:00:03]} 3. d4 {[%emt 0:00:02]} cxd4 {[%emt 0:00:02]} 4. Nxd4 {[%emt 0:00:01]} Bg7 {[%emt 0:00:02]} 5. c3 {[%emt 0:00:03]} d6 {[%emt 0:00:06]} 6. Be3 {[%emt 0:00:08]} Nf6 {[%emt 0:00:07]} 7. Nd2 {[%emt 0:00:06]} O-O {[%emt 0:00:10]} 8. Be2 {[%emt 0:00:10]} b6 {[%emt 0:00:20]} 9. f3 {[%emt 0:00:13]} Bb7 {[%emt 0:00:05]} 10. O-O {[%emt 0:00:23]} Nc6 {[%emt 0:00:17]} 11. Rc1 {[%emt 0:00:07]} Qc7 {[%emt 0:00:50]} 12. N2b3 {[%emt 0:01:07]} Ne5 {[%emt 0:00:48]} 13. h3 {[%emt 0:00:20]} d5 {[%emt 0:00:32]} 14. exd5 {[%emt 0:01:36]} Nxd5 {[%emt 0:00:08]} 15. Bf2 {[%emt 0:00:01]} Bh6 {[%emt 0:00:55]} 16. Rb1 {[%emt 0:00:26]} Ne3 {[%emt 0:02:26]} 17. Bxe3 {[%emt 0:00:21]} Bxe3+ {[%emt 0:00:03]} 18. Kh1 {[%emt 0:00:09]} Bf4 {[%emt 0:00:34]} 19. Qe1 {[%emt 0:00:14]} Nc4 {[%emt 0:00:11]} 20. Bxc4 {[%emt 0:00:34]} Qxc4 {[%emt 0:00:05]} 21. Qxe7 {[%emt 0:00:34]} Ba6 {[%emt 0:01:33]} 22. Qf6 {[%emt 0:00:41]} Bg3 {[%emt 0:00:50]} 23. Qg5 {[%emt 0:00:41]} Qc7 {[%emt 0:00:07]} 24. Rfd1 {[%emt 0:00:38]} Rae8 {[%emt 0:00:52]} 25. c4 {[%emt 0:02:32]} Bf4 {[%emt 0:00:13]} 26. Qh4 {[%emt 0:00:16]} Qe5 {[%emt 0:00:30]} 27. Nc6 {[%emt 0:02:11]} Qc7 {[%emt 0:00:59]} 28. Ncd4 {[%emt 0:00:08]} Bxc4 {[%emt 0:00:25]} 29. Qf2 {[%emt 0:00:39]} Bxb3 {[%emt 0:00:21]} 30. Nxb3 {[%emt 0:00:30]} Bg3 {[%emt 0:00:19]} 31. Qf1 {[%emt 0:00:07]} Bh4 {[%emt 0:00:03]} 32. Rd4 {[%emt 0:00:24]} Bf6 {[%emt 0:00:06]} 33. Rd3 {[%emt 0:00:13]} Qg3 {[%emt 0:00:06]} 34. f4 {[%emt 0:00:33]} Qh4 {[%emt 0:00:38]} 35. Kh2 {[%emt 0:00:45]} Re4 {[%emt 0:01:11]} 36. Rf3 {[%emt 0:00:32]} Qh6 {[%emt 0:01:11]} 37. Nd2 {[%emt 0:00:23]} Rxf4 {[%emt 0:00:01]} 38. Rxf4 {[%emt 0:00:12]} Be5 {[%emt 0:00:02]} 39. g3 {[%emt 0:00:01]} g5 {[%emt 0:00:23]} 40. Rf2 {[%emt 0:00:31]} Qh4 {[%emt 0:00:09]} 41. Qg2 {[%emt 0:00:29]} g4 {[%emt 0:00:37]} 42. Re2 {[%emt 0:00:26]} Bb8 {[%emt 0:00:22]} 43. Rf1 {[%emt 0:00:27]} Qh5 {[%emt 0:00:03]} 44. Ne4 {[%emt 0:00:18]} Kg7 {[%emt 0:00:47]} 45. Nf6 {[%emt 0:00:11]} Qg6 {[%emt 0:00:33]} 46. Nxg4 {[%emt 0:00:47]} f5 {[%emt 0:00:54]} 47. Ne5 {[%emt 0:00:30]} Qd6 {[%emt 0:01:02]} 48. Nc4 {[%emt 0:00:25]} Qc5 {[%emt 0:00:17]} 49. b3 {[%emt 0:00:07]} Rd8 {[%emt 0:00:27]} 50. Rfe1 {[%emt 0:00:25]} Rd7 {[%emt 0:00:42]} 1-0

[Event "13th All African Mixed Team Rapid-ch 202"]
[Site "Accra"]
[Date "2024.03.09"]
[Round "6.11"]
[White "Paiva, Donaldo"]
[Black "Wanyama, Harold"]
[Result "0-1"]
[ECO "C00"]
[WhiteElo "2172"]
[BlackElo "2226"]
[Annotator "TA"]
[PlyCount "68"]
[EventDate "2024.03.07"]
[EventType "rapid"]
[EventCountry "GHA"]
[SourceTitle "playchess.com"]
[Source "ChessBase"]
[SourceQuality "1"]
[TimeControl "900+10"]

{[%evp 11,68,-3,0,0,8,-27,-15,-29,52,-122,-116,-158,-151,-159,-148,-156,-140,-147,-132,-202,-181,-255,-137,-153,-136,-139,-103,-102,-96,-464,-263,-447,-429,-433,-450,-497,-491,-479,-389,-353,-238,-579,-569,-566,-541,-1371,-1367,-1211,-204,-617,-577,-675,-608,-700,-669,-711,-706,-29997,-500]} 1. e4 {[%emt 0:00:01]} c5 {[%emt 0:00:02]} 2. Nf3 {[%emt 0:00:02]} e6 {[%emt 0:00:01]} 3. d3 {[%emt 0:00:09]} Nc6 {[%emt 0:00:03]} 4. g3 {[%emt 0:00:02]} Nf6 {[%emt 0:00:03]} 5. Bg2 {[%emt 0:00:01]} d5 {[%emt 0:00:02]} 6. Nbd2 {[%emt 0:00:02]} b6 {[%emt 0:00:12]} 7. O-O {[%emt 0:00:08]} Bb7 {[%emt 0:00:04]} 8. e5 {[%emt 0:00:07]} Nd7 {[%emt 0:00:03]} 9. Re1 {[%emt 0:00:02] The position is equal.} g5 {[%emt 0:00:10]} (9... Be7 $11) 10. g4 $2 {[%emt 0:00:42]} (10. c4 $14 {keeps the upper hand.}) 10... Bg7 $17 {[%emt 0:00:07][%cal Oh7h5]} 11. c4 {[%emt 0:00:22]} Ncxe5 {[%emt 0:00:18]} 12. cxd5 {[%emt 0:01:10]} Bxd5 {[%emt 0:00:20]} (12... Nxd3 13. dxe6 Nxe1 14. Nxe1 (14. exd7+ Qxd7 15. Qxe1+ Kf8 $14) 14... Bxg2 15. exd7+ Qxd7 16. Nxg2 $14 (16. Qe2+ Kf8 $14)) 13. Ne4 {[%emt 0:00:10]} Nxf3+ {[%emt 0:00:11]} (13... Nxg4 14. Nd6+ Ke7 15. Nxg5 $18 (15. Bxg5+ Bf6 $15) (15. Nxf7 Qc7 $11)) 14. Bxf3 {[%emt 0:01:26] Hoping for Nd6+.} Ne5 {[%emt 0:00:08]} 15. Bg2 {[%emt 0:00:46]} (15. Bxg5 $17 Nxf3+ 16. Qxf3 Qxg5 17. Nxg5 Bxf3 18. Nxf3) 15... h6 $19 {[%emt 0:00:05] Strongly threatening ...Ng6.} 16. f4 {[%emt 0:00:17] [#]} (16. Be3 {keeps fighting.}) 16... gxf4 {[%emt 0:00:11]} ({Better is} 16... Ng6 $1 $19 17. fxg5 Bd4+ 18. Be3 Bxe3+ (18... Bxb2 19. gxh6 Qc7 20. Bg5 $15) (18... hxg5 $2 19. Bxd4 cxd4 20. Qa4+ Kf8 21. Qb4+ Kg8 22. Qxd4 $19) 19. Rxe3 hxg5) 17. Bxf4 $17 {[%emt 0:00:01][%cal Oe4c5]} O-O {[%emt 0:00:04] ...Ng6 would now be deadly.} 18. g5 {[%emt 0:01:08]} hxg5 {[%emt 0:00:56]} 19. Nxg5 {[%emt 0:06:31]} Bxg2 {[%emt 0:00:10]} 20. Rxe5 $2 {[%emt 0:00:04][%mdl 8192] Now White is beyond hope.} (20. Qh5 $17 Qxd3 (20... Nxd3 21. Qh7#) (20... Qd4+ $2 21. Kxg2 Qxd3 22. Re4 $18) 21. Bxe5) 20... Bb7 {[%emt 0:01:01]} (20... Bxe5 $142 21. Qh5 Bd4+ (21... Bxf4 22. Qh7#) (21... Qd4+ $2 22. Kxg2 Qd5+ 23. Kf2 $19) 22. Kxg2 Qd5+ (22... Bxb2 23. Qh7#) 23. Kg3 Qf5 (23... Bxb2 24. Qh7#)) 21. Qh5 $2 {[%emt 0:01:07]} (21. Re3 {was necessary.} Qd5 (21... Bxb2 22. Qh5) 22. Qg4) 21... Qxd3 $19 {[%emt 0:00:14]} (21... Qd4+ $2 22. Re3 $18) 22. Qg4 {[%emt 0:01:38]} Rad8 {[%emt 0:01:34][%cal Od3g6] White must now prevent ...Qg6!} 23. Rae1 {[%emt 0:01:55]} Qg6 {[%emt 0:01:06]} 24. h4 {[%emt 0:00:15]} Rd4 {[%emt 0:00:32]} 25. h5 {[%emt 0:00:46]} Qf6 {[%emt 0:00:32]} 26. Nh3 {[%emt 0:00:03]} (26. Ne4 {nothing else works.} Bxe4 27. R1xe4) 26... Kh7 {[%emt 0:00:31] ...Bh6 is the strong threat.} 27. Qg3 {[%emt 0:00:07]} Rg8 {[%emt 0:01:23][%cal Od4f4] aiming for ...Rxf4!} 28. Rg5 {[%emt 0:00:18] [#]} Rxf4 {[%emt 0:01:03]} 29. Nxf4 {[%emt 0:00:23] [#]} Bh6 $2 {[%emt 0:02:35]} 30. Rxg8 {[%emt 0:00:07]} (30. Qd3+ Kh8 31. Rxg8+ Kxg8 32. Qg3+ Kh7 33. Nh3) 30... Bxf4 {[%emt 0:00:04]} 31. Qg4 {[%emt 0:00:13]} Qd4+ {[%emt 0:00:04]} (31... Qxb2 $2 {perishes.} 32. Qxf4 Kxg8 33. Qb8+ Kg7 34. Qxb7 Qd4+ 35. Kf1 Qf6+ 36. Kg2 Qg5+ 37. Kf2 Qh4+ 38. Ke2 $18) 32. Kf1 {[%emt 0:00:03]} Ba6+ {[%emt 0:00:03] A strong pair of Bishops.} (32... Qxb2 33. Qxf4 Kxg8 (33... Ba6+ 34. Kg1 $16) 34. Qb8+ Kg7 35. Qxb7 Qf6+ 36. Kg2 Qg5+ 37. Kf2 Qh4+ 38. Ke2 $18) 33. Kg2 {[%emt 0:00:03]} Qd2+ {[%emt 0:00:45]} (33... Qxb2+ $2 34. Kf3 Be5 35. Rf8 Bb7+ 36. Re4 Bxe4+ 37. Qxe4+ f5 38. Qe2 $17) 34. Kf3 {[%emt 0:00:28]} Bb7+ {[%emt 0:00:06] Weighted Error Value: White=1.23/Black=0.46.  Loses game:     	White=1     	---        Mistake:       	White=5     	Black=3      Inaccurate:     	White=3     	Black=1      OK:         	White=6     	Black=8      Best:        	White=2     	Black=3      Brilliant:      	---       	Black=1} 0-1

[Event "13th All African Mixed Team Rapid-ch 202"]
[Site "Accra"]
[Date "2024.03.09"]
[Round "6.12"]
[White "Nakabo, Peninah"]
[Black "Vilhete, Vania Fausto Da T."]
[Result "0-1"]
[ECO "B50"]
[WhiteElo "1836"]
[BlackElo "1829"]
[Annotator "NA RC"]
[PlyCount "188"]
[EventDate "2024.03.07"]
[EventType "rapid"]
[EventCountry "GHA"]
[SourceTitle "playchess.com"]
[Source "ChessBase"]
[SourceQuality "1"]
[TimeControl "900+10"]

1. e4 {[%emt 0:00:01]} c5 {[%emt 0:00:01]} 2. Nf3 {[%emt 0:00:02]} d6 {[%emt 0:00:02]} 3. c3 {[%emt 0:00:02]} Nf6 {[%emt 0:00:13]} 4. e5 {[%emt 0:00:13]} dxe5 {[%emt 0:00:02]} 5. Nxe5 {[%emt 0:00:12]} e6 {[%emt 0:00:01]} 6. d4 {[%emt 0:00:12]} cxd4 {[%emt 0:00:03]} 7. cxd4 {[%emt 0:00:04]} Be7 {[%emt 0:00:15]} 8. Bb5+ {[%emt 0:00:17]} Bd7 {[%emt 0:00:01]} 9. Bxd7+ {[%emt 0:01:03]} Nbxd7 {[%emt 0:00:09]} 10. Qa4 {[%emt 0:01:40]} O-O {[%emt 0:00:18]} 11. Nxd7 {[%emt 0:00:04]} Qxd7 {[%emt 0:00:02]} 12. Qxd7 {[%emt 0:00:03]} Nxd7 {[%emt 0:00:02]} 13. O-O {[%emt 0:00:04]} Bf6 {[%emt 0:00:09]} 14. Be3 {[%emt 0:00:05]} Nb6 {[%emt 0:00:03]} 15. Nd2 {[%emt 0:00:19]} Rfd8 {[%emt 0:00:25]} 16. Nf3 {[%emt 0:00:19]} Nc4 {[%emt 0:00:21]} 17. b3 {[%emt 0:00:14]} Nxe3 {[%emt 0:00:09]} 18. fxe3 {[%emt 0:00:02]} Rac8 {[%emt 0:00:03]} 19. Rac1 {[%emt 0:00:04]} h6 {[%emt 0:00:08]} 20. Rc4 {[%emt 0:00:07]} b5 {[%emt 0:01:10]} 21. Rc5 {[%emt 0:00:04]} Rxc5 {[%emt 0:00:49]} 22. dxc5 {[%emt 0:00:03]} b4 {[%emt 0:00:29]} 23. Rc1 {[%emt 0:00:24]} Bc3 {[%emt 0:00:38]} 24. c6 {[%emt 0:02:51]} Rc8 {[%emt 0:00:30]} 25. Nd4 {[%emt 0:01:10]} Bd2 {[%emt 0:01:13]} 26. Rc4 {[%emt 0:00:10]} Bxe3+ {[%emt 0:00:22]} 27. Kf1 {[%emt 0:00:03]} Bxd4 {[%emt 0:01:18]} 28. Rxd4 {[%emt 0:00:03]} Rxc6 {[%emt 0:00:01]} 29. Rxb4 {[%emt 0:00:02]} Rc1+ {[%emt 0:00:08]} 30. Kf2 {[%emt 0:00:11]} Rc2+ {[%emt 0:00:02]} 31. Kf3 {[%emt 0:00:08]} Rxa2 {[%emt 0:00:03]} 32. Rb7 {[%emt 0:00:23]} f6 {[%emt 0:00:19]} 33. b4 {[%emt 0:00:12]} e5 {[%emt 0:00:07]} 34. b5 {[%emt 0:00:32]} Kh7 {[%emt 0:00:03]} 35. h4 {[%emt 0:00:35]} h5 {[%emt 0:00:09]} 36. g3 {[%emt 0:00:11]} Kh6 {[%emt 0:00:28]} 37. Ke4 {[%emt 0:00:48]} Kg6 {[%emt 0:00:46]} 38. Kf3 {[%emt 0:01:05]} Ra4 {[%emt 0:00:20]} 39. Re7 {[%emt 0:00:37]} Rb4 {[%emt 0:00:28]} 40. Rxa7 {[%emt 0:00:07]} Rxb5 {[%emt 0:00:04]} 41. Ra3 {[%emt 0:00:05]} Rb4 {[%emt 0:00:06]} 42. Re3 {[%emt 0:00:13]} Kf5 {[%emt 0:00:05]} 43. Ra3 {[%emt 0:00:14]} g5 {[%emt 0:00:17]} 44. hxg5 {[%emt 0:00:09]} fxg5 {[%emt 0:00:29]} 45. Rc3 {[%emt 0:00:47]} e4+ {[%emt 0:00:43]} 46. Kg2 {[%emt 0:00:35]} Kg4 {[%emt 0:00:24]} 47. Re3 {[%emt 0:00:26]} h4 {[%emt 0:00:56]} 48. gxh4 {[%emt 0:00:09]} Kxh4 {[%emt 0:00:07]} 49. Kf2 {[%emt 0:02:12]} Kg4 {[%emt 0:00:06]} 50. Ra3 {[%emt 0:00:15]} Kf4 {[%emt 0:00:09]} 51. Kg2 {[%emt 0:00:42]} g4 {[%emt 0:00:13]} 52. Ra8 {[%emt 0:00:19]} Rb2+ {[%emt 0:00:20]} 53. Kf1 {[%emt 0:00:04]} e3 {[%emt 0:00:45]} 54. Rf8+ {[%emt 0:00:10]} Kg3 {[%emt 0:00:02]} 55. Re8 {[%emt 0:00:07]} e2+ {[%emt 0:00:58]} 56. Ke1 {[%emt 0:00:32]} Kg2 {[%emt 0:00:05]} 57. Rh8 {[%emt 0:00:25]} g3 {[%emt 0:00:14]} 58. Rh7 {[%emt 0:00:09]} Kg1 {[%emt 0:01:11]} 59. Rh8 {[%emt 0:00:04]} g2 {[%emt 0:00:01]} 60. Rh7 {[%emt 0:00:16]} Rb1+ {[%emt 0:01:57]} 61. Kxe2 {[%emt 0:00:04]} Rf1 {[%emt 0:00:05]} 62. Rh8 {[%emt 0:00:22]} Rf5 {[%emt 0:00:11]} 63. Re8 {[%emt 0:01:56]} Rf2+ {[%emt 0:00:27]} 64. Ke1 {[%emt 0:00:18]} Rf1+ {[%emt 0:02:49]} 65. Ke2 {[%emt 0:00:03]} Rf4 {[%emt 0:00:14]} 66. Re6 {[%emt 0:00:22]} Kh2 {[%emt 0:00:06]} 67. Rh6+ {[%emt 0:00:16]} Kg3 {[%emt 0:00:18]} 68. Rg6+ {[%emt 0:00:07]} Kh3 {[%emt 0:00:04]} 69. Rh6+ {[%emt 0:00:08]} Kg3 {[%emt 0:00:57]} 70. Rg6+ {[%emt 0:00:02]} Kh2 {[%emt 0:00:05]} 71. Rh6+ {[%emt 0:00:02]} Kg1 {[%emt 0:00:01]} 72. Re6 {[%emt 0:00:07]} Ra4 {[%emt 0:00:07]} 73. Ke1 {[%emt 0:00:11]} Ra2 {[%emt 0:00:04]} 74. Re8 {[%emt 0:00:07]} Kh2 {[%emt 0:00:12]} 75. Rh8+ {[%emt 0:00:04]} Kg3 {[%emt 0:00:04]} 76. Rg8+ {[%emt 0:00:03]} Kf3 {[%emt 0:00:01]} 77. Rf8+ {[%emt 0:00:03]} Ke3 {[%emt 0:00:24]} 78. Re8+ {[%emt 0:00:04]} Kf4 {[%emt 0:00:05]} 79. Rf8+ {[%emt 0:00:14]} Ke5 {[%emt 0:00:10]} 80. Rg8 {[%emt 0:00:25]} Kf6 {[%emt 0:00:11]} 81. Rg3 {[%emt 0:00:25]} Kf5 {[%emt 0:00:04]} 82. Rg8 {[%emt 0:00:06]} Ke4 {[%emt 0:00:27]} 83. Re8+ {[%emt 0:00:07]} Kf3 {[%emt 0:00:19]} 84. Rf8+ {[%emt 0:00:03]} Kg3 {[%emt 0:00:19]} 85. Rg8+ {[%emt 0:00:03]} Kh2 {[%emt 0:00:06]} 86. Rh8+ {[%emt 0:00:02]} Kg1 {[%emt 0:00:08]} 87. Rh7 {[%emt 0:00:10]} Ra6 {[%emt 0:00:09]} 88. Re7 {[%emt 0:00:49]} Rf6 {[%emt 0:00:10]} 89. Ke2 {[%emt 0:00:05]} Rf4 {[%emt 0:00:07]} 90. Re6 {[%emt 0:00:07]} Rh4 {[%emt 0:00:08]} 91. Ra6 {[%emt 0:00:08]} Re4+ {[%emt 0:00:07]} 92. Kf3 {[%emt 0:00:07]} Re7 {[%emt 0:00:12]} 93. Kg3 {[%emt 0:00:23]} Re3+ {[%emt 0:00:10]} 94. Kf4 {[%emt 0:00:06]} Rh3 {[%emt 0:00:07]} 0-1

[Event "13th All African Mixed Team Rapid-ch 202"]
[Site "Accra"]
[Date "2024.03.09"]
[Round "6.13"]
[White "Zhemba, Jemusse"]
[Black "Frempong-Smart Daniel"]
[Result "1-0"]
[ECO "B03"]
[WhiteElo "2226"]
[BlackElo "1877"]
[Annotator "TA"]
[PlyCount "85"]
[EventDate "2024.03.07"]
[EventType "rapid"]
[EventCountry "GHA"]
[SourceTitle "playchess.com"]
[Source "ChessBase"]
[SourceQuality "1"]
[TimeControl "900+10"]

{[%evp 15,85,32,35,0,45,0,14,20,40,18,8,-1,45,18,48,25,26,29,34,41,35,11,18,18,172,179,177,127,143,137,141,131,132,111,229,254,238,249,366,394,395,366,717,681,649,668,888,853,1134,1115,1048,891,852,901,887,872,1201,1185,1368,1363,1485,1464,1866,2159,5014,5006,29981,29982,29988,29989,29989,29989]} 1. e4 {[%emt 0:00:03][%cal Be2e4,Be4e5][%mdl 32]} Nf6 {[%emt 0:00:01]} 2. e5 {[%emt 0:00:16]} Nd5 {[%emt 0:00:03]} 3. d4 {[%emt 0:00:11]} d6 {[%emt 0:00:01]} 4. c4 {[%emt 0:00:09]} Nb6 {[%emt 0:00:02]} 5. exd6 {[%emt 0:00:03]} cxd6 {[%emt 0:00:03]} 6. Nc3 {[%emt 0:00:04]} g6 {[%emt 0:00:03]} 7. Be3 {[%emt 0:00:04]} Bg7 {[%emt 0:00:03]} 8. Rc1 {[%emt 0:00:03]} O-O {[%emt 0:00:07]} 9. Be2 {[%emt 0:00:03]} Nc6 {[%emt 0:00:13]} 10. b3 {[%emt 0:00:03]} e5 {[%emt 0:00:48]} 11. Nf3 {[%emt 0:00:12] Die Stellung ist ausgeglichen.} Bg4 {[%emt 0:00:23]} 12. d5 {[%emt 0:00:03]} Ne7 {[%emt 0:00:09]} 13. O-O {[%emt 0:00:15]} Rc8 {[%emt 0:00:19]} (13... Nf5 $11 {ist eher angebracht.}) 14. a4 {[%emt 0:01:43]} a6 {[%emt 0:00:22]} 15. h3 {[%emt 0:00:27]} Bxf3 {[%emt 0:00:07]} 16. Bxf3 {[%emt 0:00:03]} f5 {[%emt 0:00:13] Es drohte Ne4} 17. Be2 {[%emt 0:00:44]} Nd7 {[%emt 0:00:32]} 18. f3 {[%emt 0:00:25]} f4 {[%emt 0:00:50]} 19. Bf2 {[%emt 0:00:05]} Nc5 $2 {[%emt 0:00:10]} (19... a5 $11 {und Schwarz ist OK.}) 20. b4 $18 {[%emt 0:00:04]} Nd7 {[%emt 0:00:04]} 21. Ne4 {[%emt 0:00:05]} (21. c5 $18 {Ne4 ist eine echte Drohung.} Nf6 22. c6 bxc6 23. Bxa6) 21... Nf6 {[%emt 0:00:04]} 22. Ng5 $36 {[%emt 0:00:05][%mdl 2048] Schwarz muss aufpassen. Weiß steht aktiver.} Qd7 {[%emt 0:00:38]} 23. Re1 {[%emt 0:00:48]} Nf5 {[%emt 0:00:48]} 24. Qb3 {[%emt 0:00:35]} h6 {[%emt 0:02:02]} (24... Kh8 $16 25. Ne6 Rfe8) 25. Ne6 {[%emt 0:00:08]} Rfe8 {[%emt 0:00:06]} 26. Bd3 {[%emt 0:00:12]} Nh5 {[%emt 0:00:53]} (26... Ne7 {war einen Versuch wert.} 27. a5 Kh7) 27. c5 {[%emt 0:00:15]} Bf6 {[%emt 0:01:54]} 28. c6 {[%emt 0:00:35]} bxc6 {[%emt 0:00:16]} (28... Qe7 29. Nc5 bxc6 30. Bxa6 (30. dxc6+ Kh8 $18) (30. Nxa6 c5 $18) 30... Ra8 31. dxc6+ Kh7) 29. dxc6 {[%emt 0:00:14]} Qf7 {[%emt 0:01:06]} 30. Bc4 {[%emt 0:00:09]} d5 {[%emt 0:02:29]} 31. Bxd5 {[%emt 0:00:06]} Ne7 {[%emt 0:00:04][%cal Bf5e7,Be7g6,Bg6f4][%mdl 32]} 32. Bc4 {[%emt 0:00:16] Ein starkes Läuferpaar.} Kh8 {[%emt 0:01:13] [#]} 33. Nxf4 $1 {[%emt 0:00:38][%mdl 512]} Qh7 {[%emt 0:00:12]} 34. Nxh5 {[%emt 0:00:05]} gxh5 {[%emt 0:00:02]} 35. b5 {[%emt 0:00:23][%cal Bb4b5,Bb5b6][%mdl 32]} Ng6 {[%emt 0:01:12]} 36. Be6 {[%emt 0:00:14]} Nf4 {[%emt 0:00:16]} 37. Bxc8 {[%emt 0:00:48]} Rxc8 {[%emt 0:00:15]} 38. Bg3 {[%emt 0:00:03]} Qg7 {[%emt 0:00:16]} 39. Bxf4 {[%emt 0:00:03]} exf4 {[%emt 0:00:02]} 40. b6 {[%emt 0:00:09] Droht Matt per b7.} Bd4+ {[%emt 0:00:05]} 41. Kh1 {[%emt 0:00:08] Weiß setzt Matt.} Rg8 {[%emt 0:00:17] [#]} 42. Qxg8+ $3 {[%emt 0:00:10][%mdl 512]} Qxg8 {[%emt 0:00:22]} 43. c7 {[%emt 0:00:03] Gewichteter Fehlerwert: Weiß=0.13 (sehr präzise) /Schwarz=0.58.  Fehler:       	Weiß=1     	Schwarz=5     Ungenau:       	Weiß=2     	Schwarz=2     OK:         	Weiß=5     	Schwarz=8     Bester:       	Weiß=2     	---} 1-0